[Event "Titled Tuesday Blitz August 17 2021"]
[White "Dudzinski, Pawel"]
[Black "Dobrowolski, Piotr"]
[WhiteFideId "1117890"]
[BlackFideId "1106236"]
[WhiteElo "2193"]
[BlackElo "2296"]
[Result "0-1"]
[Round "09"]
[TimeControl "180+1"]
[Date "2021.08.17"]
[WhiteClock "0:00:20"]
[BlackClock "0:00:29"]

1. e4 {[%clk 0:02:58]}  c5 {[%clk 0:02:59]} 2. c4 {[%clk 0:02:57]}  Nc6 {[%clk 0:02:58]} 3. Nc3 {[%clk 0:02:57]}  e6 {[%clk 0:02:56]} 4. g3 {[%clk 0:02:57]}  Nf6 {[%clk 0:02:55]} 5. Bg2 {[%clk 0:02:58]}  d5 {[%clk 0:02:56]} 6. exd5 {[%clk 0:02:58]}  exd5 {[%clk 0:02:56]} 7. Nxd5 {[%clk 0:02:59]}  Nxd5 {[%clk 0:02:56]} 8. cxd5 {[%clk 0:02:58]}  Nb4 {[%clk 0:02:51]} 9. d3 {[%clk 0:02:57]}  Qa5 {[%clk 0:02:21]} 10. Kf1 {[%clk 0:02:48]}  Qa6 {[%clk 0:02:00]} 11. Qe2+ {[%clk 0:02:31]}  Kd8 {[%clk 0:01:57]} 12. Bg5+ {[%clk 0:02:18]}  f6 {[%clk 0:01:55]} 13. Be3 {[%clk 0:02:11]}  Bd6 {[%clk 0:01:38]} 14. d4 {[%clk 0:01:55]}  b6 {[%clk 0:01:26]} 15. dxc5 {[%clk 0:01:49]}  bxc5 {[%clk 0:01:26]} 16. Qxa6 {[%clk 0:01:37]}  Bxa6+ {[%clk 0:01:25]} 17. Ne2 {[%clk 0:01:38]}  Rb8 {[%clk 0:01:08]} 18. Be4 {[%clk 0:00:48]}  Re8 {[%clk 0:01:00]} 19. Bxh7 {[%clk 0:00:47]}  Nxd5 {[%clk 0:00:52]} 20. Rd1 {[%clk 0:00:41]}  Nxe3+ {[%clk 0:00:37]} 21. fxe3 {[%clk 0:00:40]}  Kc7 {[%clk 0:00:37]} 22. Bd3 {[%clk 0:00:29]}  Bxd3 {[%clk 0:00:34]} 23. Rxd3 {[%clk 0:00:29]}  Rxb2 {[%clk 0:00:35]} 24. Ra3 {[%clk 0:00:26]}  c4 {[%clk 0:00:29]} 25. Kf2 {[%clk 0:00:20]}  Bxa3 {[%clk 0:00:29]} 0-1


[Site "https://www.chess.com"]

[Event "Titled Tuesday Blitz August 17 2021"]
[White "Esipenko, Andrey"]
[Black "AlexOstrovskiy"]
[WhiteFideId "24175439"]
[WhiteElo "2595"]
[BlackElo "2859"]
[Result "1-0"]
[Round "09"]
[TimeControl "180+1"]
[Date "2021.08.17"]
[WhiteClock "0:00:13"]
[BlackClock "0:00:01"]

1. e4 {[%clk 0:03:00]}  d5 {[%clk 0:02:58]} 2. exd5 {[%clk 0:02:58]}  Nf6 {[%clk 0:02:58]} 3. Nf3 {[%clk 0:02:55]}  Bg4 {[%clk 0:02:57]} 4. h3 {[%clk 0:02:53]}  Bxf3 {[%clk 0:02:58]} 5. Qxf3 {[%clk 0:02:54]}  Qxd5 {[%clk 0:02:59]} 6. Qxd5 {[%clk 0:02:48]}  Nxd5 {[%clk 0:02:59]} 7. Bc4 {[%clk 0:02:48]}  e6 {[%clk 0:02:57]} 8. c3 {[%clk 0:02:48]}  Nc6 {[%clk 0:02:48]} 9. d4 {[%clk 0:02:46]}  O-O-O {[%clk 0:02:47]} 10. Bb5 {[%clk 0:02:40]}  Bd6 {[%clk 0:02:38]} 11. Nd2 {[%clk 0:02:32]}  a6 {[%clk 0:02:32]} 12. Bxc6 {[%clk 0:02:26]}  bxc6 {[%clk 0:02:32]} 13. Nb3 {[%clk 0:02:22]}  e5 {[%clk 0:02:24]} 14. dxe5 {[%clk 0:02:22]}  Bxe5 {[%clk 0:02:25]} 15. O-O {[%clk 0:02:21]}  Rhe8 {[%clk 0:02:24]} 16. g3 {[%clk 0:02:17]}  Nb6 {[%clk 0:02:17]} 17. Kg2 {[%clk 0:01:57]}  Nc4 {[%clk 0:02:14]} 18. Rb1 {[%clk 0:01:57]}  a5 {[%clk 0:02:01]} 19. a4 {[%clk 0:01:51]}  Bd6 {[%clk 0:01:56]} 20. Nd4 {[%clk 0:01:49]}  Kb7 {[%clk 0:01:53]} 21. b3 {[%clk 0:01:49]}  Nb6 {[%clk 0:01:48]} 22. Nf5 {[%clk 0:01:47]}  Be5 {[%clk 0:01:40]} 23. c4 {[%clk 0:01:47]}  g6 {[%clk 0:01:38]} 24. Nh6 {[%clk 0:01:48]}  Rd7 {[%clk 0:01:25]} 25. Ng4 {[%clk 0:01:44]}  Bd4 {[%clk 0:01:19]} 26. Be3 {[%clk 0:01:22]}  f5 {[%clk 0:01:07]} 27. Bxd4 {[%clk 0:01:16]}  Rxd4 {[%clk 0:01:08]} 28. Ne3 {[%clk 0:01:06]}  c5 {[%clk 0:00:33]} 29. Rfd1 {[%clk 0:01:05]}  Red8 {[%clk 0:00:29]} 30. Kf3 {[%clk 0:00:41]}  Nd7 {[%clk 0:00:27]} 31. Ke2 {[%clk 0:00:42]}  Ne5 {[%clk 0:00:25]} 32. Nc2 {[%clk 0:00:42]}  Re4+ {[%clk 0:00:17]} 33. Kf1 {[%clk 0:00:41]}  Re8 {[%clk 0:00:12]} 34. Rd5 {[%clk 0:00:39]}  f4 {[%clk 0:00:09]} 35. gxf4 {[%clk 0:00:20]}  Rxf4 {[%clk 0:00:09]} 36. Ne3 {[%clk 0:00:20]}  c6 {[%clk 0:00:04]} 37. Rd6 {[%clk 0:00:17]}  Kc7 {[%clk 0:00:02]} 38. Rbd1 {[%clk 0:00:16]}  Nf3 {[%clk 0:00:03]} 39. Rd7+ {[%clk 0:00:15]}  Kb6 {[%clk 0:00:03]} 40. Rxh7 {[%clk 0:00:14]}  Nd4 {[%clk 0:00:03]} 41. Kg2 {[%clk 0:00:14]}  Ref8 {[%clk 0:00:03]} 42. Rd2 {[%clk 0:00:15]}  R8f6 {[%clk 0:00:02]} 43. Ng4 {[%clk 0:00:14]}  R6f5 {[%clk 0:00:01]} 44. Re7 {[%clk 0:00:13]} 1-0


[Site "https://www.chess.com"]

[Event "Titled Tuesday Blitz August 17 2021"]
[White "Eternauta2400"]
[Black "Solon, Nathan"]
[BlackFideId "2017229"]
[WhiteElo "2566"]
[BlackElo "2679"]
[Result "0-1"]
[Round "09"]
[TimeControl "180+1"]
[Date "2021.08.17"]
[WhiteClock "0:01:05"]
[BlackClock "0:00:47"]

1. e4 {[%clk 0:02:45]}  c6 {[%clk 0:02:59]} 2. d4 {[%clk 0:02:44]}  d5 {[%clk 0:03:00]} 3. exd5 {[%clk 0:02:45]}  cxd5 {[%clk 0:03:01]} 4. c4 {[%clk 0:02:45]}  Nf6 {[%clk 0:03:00]} 5. Nc3 {[%clk 0:02:46]}  Nc6 {[%clk 0:03:01]} 6. Nf3 {[%clk 0:02:45]}  Bg4 {[%clk 0:03:00]} 7. Be3 {[%clk 0:02:44]}  e6 {[%clk 0:02:57]} 8. c5 {[%clk 0:02:44]}  Be7 {[%clk 0:02:54]} 9. Bb5 {[%clk 0:02:44]}  O-O {[%clk 0:02:54]} 10. h3 {[%clk 0:02:45]}  Bxf3 {[%clk 0:02:45]} 11. Qxf3 {[%clk 0:02:42]}  Rc8 {[%clk 0:02:46]} 12. O-O {[%clk 0:02:36]}  b6 {[%clk 0:02:46]} 13. Bxc6 {[%clk 0:02:35]}  Rxc6 {[%clk 0:02:47]} 14. b4 {[%clk 0:02:35]}  bxc5 {[%clk 0:02:45]} 15. bxc5 {[%clk 0:02:35]}  Qa5 {[%clk 0:02:40]} 16. Bf4 {[%clk 0:02:25]}  Nd7 {[%clk 0:02:00]} 17. Rab1 {[%clk 0:02:24]}  Qa6 {[%clk 0:02:00]} 18. Rfc1 {[%clk 0:02:09]}  Bf6 {[%clk 0:01:59]} 19. Nb5 {[%clk 0:02:07]}  Rfc8 {[%clk 0:01:36]} 20. a3 {[%clk 0:02:00]}  h6 {[%clk 0:01:24]} 21. Nd6 {[%clk 0:01:52]}  Rf8 {[%clk 0:01:14]} 22. Rb7 {[%clk 0:01:38]}  Rxd6 {[%clk 0:01:09]} 23. Bxd6 {[%clk 0:01:29]}  Qxb7 {[%clk 0:01:09]} 24. Bxf8 {[%clk 0:01:29]}  Kxf8 {[%clk 0:01:02]} 25. c6 {[%clk 0:01:27]}  Qc7 {[%clk 0:01:03]} 26. Qb3 {[%clk 0:01:20]}  Nb6 {[%clk 0:01:02]} 27. a4 {[%clk 0:01:19]}  Be7 {[%clk 0:00:51]} 28. a5 {[%clk 0:01:18]}  Nc4 {[%clk 0:00:52]} 29. Qb7 {[%clk 0:01:15]}  Bd6 {[%clk 0:00:52]} 30. a6 {[%clk 0:01:13]}  Ke7 {[%clk 0:00:51]} 31. Rb1 {[%clk 0:01:10]}  Na5 {[%clk 0:00:47]} 32. Qxc7+ {[%clk 0:01:08]}  Bxc7 {[%clk 0:00:47]} 33. Rb7 {[%clk 0:01:06]}  Nxb7 {[%clk 0:00:47]} 34. cxb7 {[%clk 0:01:05]}  Kd6 {[%clk 0:00:47]} 0-1


[Site "https://www.chess.com"]

[Event "Titled Tuesday Blitz August 17 2021"]
[White "FGHSMN"]
[Black "Rustemov, Alexander"]
[BlackFideId "4119002"]
[WhiteElo "2592"]
[BlackElo "2697"]
[Result "0-1"]
[Round "09"]
[TimeControl "180+1"]
[Date "2021.08.17"]
[WhiteClock "0:00:13"]
[BlackClock "0:00:17"]

1. e4 {[%clk 0:03:00]}  e6 {[%clk 0:02:59]} 2. Qe2 {[%clk 0:03:00]}  d5 {[%clk 0:03:00]} 3. exd5 {[%clk 0:03:00]}  Qxd5 {[%clk 0:03:01]} 4. Nc3 {[%clk 0:02:55]}  Qd8 {[%clk 0:03:01]} 5. Nf3 {[%clk 0:02:52]}  c5 {[%clk 0:03:01]} 6. g3 {[%clk 0:02:49]}  Nc6 {[%clk 0:02:59]} 7. Bg2 {[%clk 0:02:49]}  Nge7 {[%clk 0:02:59]} 8. O-O {[%clk 0:02:40]}  Nf5 {[%clk 0:03:00]} 9. d3 {[%clk 0:02:38]}  Be7 {[%clk 0:02:59]} 10. Bf4 {[%clk 0:02:28]}  O-O {[%clk 0:02:57]} 11. Rfe1 {[%clk 0:02:23]}  Bd7 {[%clk 0:02:52]} 12. Ne4 {[%clk 0:02:18]}  Ncd4 {[%clk 0:02:50]} 13. Nxd4 {[%clk 0:02:17]}  cxd4 {[%clk 0:02:49]} 14. h4 {[%clk 0:02:12]}  Rc8 {[%clk 0:02:45]} 15. h5 {[%clk 0:02:08]}  h6 {[%clk 0:02:44]} 16. c3 {[%clk 0:02:04]}  dxc3 {[%clk 0:02:41]} 17. bxc3 {[%clk 0:02:05]}  Bc6 {[%clk 0:02:39]} 18. Rad1 {[%clk 0:02:03]}  b5 {[%clk 0:02:32]} 19. d4 {[%clk 0:01:59]}  a6 {[%clk 0:02:17]} 20. Qd2 {[%clk 0:01:59]}  Bd5 {[%clk 0:02:07]} 21. Bh1 {[%clk 0:01:46]}  Qd7 {[%clk 0:02:02]} 22. g4 {[%clk 0:01:33]}  Nh4 {[%clk 0:01:52]} 23. Bg3 {[%clk 0:01:13]}  f5 {[%clk 0:01:51]} 24. Nc5 {[%clk 0:01:01]}  Bxc5 {[%clk 0:01:39]} 25. dxc5 {[%clk 0:01:02]}  Qd8 {[%clk 0:01:13]} 26. Bxd5 {[%clk 0:00:53]}  exd5 {[%clk 0:01:12]} 27. Bxh4 {[%clk 0:00:50]}  Qxh4 {[%clk 0:01:11]} 28. Qxd5+ {[%clk 0:00:51]}  Kh8 {[%clk 0:01:09]} 29. gxf5 {[%clk 0:00:51]}  Qg4+ {[%clk 0:01:00]} 30. Qg2 {[%clk 0:00:50]}  Qxf5 {[%clk 0:00:50]} 31. Re7 {[%clk 0:00:45]}  Rf7 {[%clk 0:00:43]} 32. Rxf7 {[%clk 0:00:19]}  Qxf7 {[%clk 0:00:44]} 33. Qd5 {[%clk 0:00:19]}  Qf6 {[%clk 0:00:38]} 34. Rd4 {[%clk 0:00:19]}  Rf8 {[%clk 0:00:36]} 35. f4 {[%clk 0:00:16]}  Qh4 {[%clk 0:00:31]} 36. c6 {[%clk 0:00:16]}  Qg3+ {[%clk 0:00:28]} 37. Kf1 {[%clk 0:00:14]}  Re8 {[%clk 0:00:27]} 38. Rd1 {[%clk 0:00:14]}  Re3 {[%clk 0:00:21]} 39. c7 {[%clk 0:00:12]}  Rf3+ {[%clk 0:00:20]} 40. Qxf3 {[%clk 0:00:09]}  Qxf3+ {[%clk 0:00:20]} 41. Ke1 {[%clk 0:00:10]}  Qe3+ {[%clk 0:00:21]} 42. Kf1 {[%clk 0:00:10]}  Qxf4+ {[%clk 0:00:21]} 43. Kg1 {[%clk 0:00:09]}  Qxc7 {[%clk 0:00:22]} 44. Kh1 {[%clk 0:00:10]}  Qxc3 {[%clk 0:00:20]} 45. a4 {[%clk 0:00:09]}  Qf3+ {[%clk 0:00:19]} 46. Kh2 {[%clk 0:00:09]}  Qxd1 {[%clk 0:00:19]} 47. Kg2 {[%clk 0:00:10]}  bxa4 {[%clk 0:00:19]} 48. Kh2 {[%clk 0:00:11]}  a3 {[%clk 0:00:19]} 49. Kg2 {[%clk 0:00:11]}  a2 {[%clk 0:00:19]} 50. Kh2 {[%clk 0:00:12]}  a1=Q {[%clk 0:00:20]} 51. Kg2 {[%clk 0:00:13]}  Qb2+ {[%clk 0:00:18]} 52. Kh3 {[%clk 0:00:12]}  Qd3+ {[%clk 0:00:18]} 53. Kh4 {[%clk 0:00:13]}  Qbd4# {[%clk 0:00:17]} 0-1


[Site "https://www.chess.com"]

[Event "Titled Tuesday Blitz August 17 2021"]
[White "Gedajlovic, Max"]
[Black "Rastbod, Ali"]
[WhiteFideId "2616840"]
[BlackFideId "12567477"]
[WhiteElo "2137"]
[BlackElo "2226"]
[Result "1/2-1/2"]
[Round "09"]
[TimeControl "180+1"]
[Date "2021.08.17"]
[WhiteClock "0:00:17"]
[BlackClock "0:00:11"]

1. d4 {[%clk 0:03:00]}  Nf6 {[%clk 0:02:52]} 2. Nf3 {[%clk 0:03:01]}  c5 {[%clk 0:02:49]} 3. d5 {[%clk 0:03:00]}  b5 {[%clk 0:02:45]} 4. c4 {[%clk 0:02:59]}  b4 {[%clk 0:02:41]} 5. Nbd2 {[%clk 0:02:53]}  d6 {[%clk 0:02:34]} 6. e4 {[%clk 0:02:53]}  g6 {[%clk 0:02:34]} 7. Bd3 {[%clk 0:02:52]}  Bg7 {[%clk 0:02:34]} 8. O-O {[%clk 0:02:51]}  O-O {[%clk 0:02:35]} 9. h3 {[%clk 0:02:50]}  e5 {[%clk 0:02:32]} 10. a3 {[%clk 0:02:46]}  Nfd7 {[%clk 0:02:22]} 11. Nb3 {[%clk 0:02:45]}  a5 {[%clk 0:02:09]} 12. Be3 {[%clk 0:02:44]}  Na6 {[%clk 0:01:57]} 13. axb4 {[%clk 0:02:42]}  Nxb4 {[%clk 0:01:58]} 14. Be2 {[%clk 0:02:29]}  h6 {[%clk 0:01:52]} 15. Qd2 {[%clk 0:02:25]}  Kh7 {[%clk 0:01:51]} 16. Nc1 {[%clk 0:02:25]}  f5 {[%clk 0:01:47]} 17. Qd1 {[%clk 0:02:22]}  f4 {[%clk 0:01:36]} 18. Bd2 {[%clk 0:02:21]}  g5 {[%clk 0:01:34]} 19. Nd3 {[%clk 0:02:21]}  Bb7 {[%clk 0:00:53]} 20. Nh2 {[%clk 0:02:07]}  Nf6 {[%clk 0:00:38]} 21. Ng4 {[%clk 0:02:03]}  Nxe4 {[%clk 0:00:36]} 22. Nxb4 {[%clk 0:02:03]}  Nxd2 {[%clk 0:00:35]} 23. Qxd2 {[%clk 0:01:55]}  axb4 {[%clk 0:00:32]} 24. Qc2+ {[%clk 0:01:56]}  Kh8 {[%clk 0:00:28]} 25. Qg6 {[%clk 0:01:56]}  Rxa1 {[%clk 0:00:16]} 26. Rxa1 {[%clk 0:01:51]}  e4 {[%clk 0:00:16]} 27. Ra7 {[%clk 0:01:35]}  Qb6 {[%clk 0:00:12]} 28. Ra4 {[%clk 0:01:22]}  Qd8 {[%clk 0:00:09]} 29. Qxe4 {[%clk 0:01:20]}  Bc8 {[%clk 0:00:06]} 30. Ra8 {[%clk 0:01:12]}  Bf5 {[%clk 0:00:06]} 31. Qxf5 {[%clk 0:00:34]}  Qxa8 {[%clk 0:00:04]} 32. Qg6 {[%clk 0:00:33]}  Qe8 {[%clk 0:00:04]} 33. Qc2 {[%clk 0:00:33]}  Qf7 {[%clk 0:00:03]} 34. Bd3 {[%clk 0:00:33]}  h5 {[%clk 0:00:03]} 35. Bg6 {[%clk 0:00:33]}  Qe7 {[%clk 0:00:02]} 36. Bxh5 {[%clk 0:00:32]}  Qe1+ {[%clk 0:00:02]} 37. Kh2 {[%clk 0:00:32]}  Qe7 {[%clk 0:00:02]} 38. f3 {[%clk 0:00:26]}  Be5 {[%clk 0:00:02]} 39. Bg6 {[%clk 0:00:20]}  Qg7 {[%clk 0:00:02]} 40. Be4 {[%clk 0:00:20]}  Bxb2 {[%clk 0:00:02]} 41. Qf2 {[%clk 0:00:19]}  Be5 {[%clk 0:00:03]} 42. h4 {[%clk 0:00:19]}  Bd4 {[%clk 0:00:03]} 43. Qe1 {[%clk 0:00:18]}  Rb8 {[%clk 0:00:03]} 44. Bb1 {[%clk 0:00:15]}  b3 {[%clk 0:00:02]} 45. Qe6 {[%clk 0:00:14]}  Rf8 {[%clk 0:00:01]} 46. Qxd6 {[%clk 0:00:13]}  Qf7 {[%clk 0:00:01]} 47. Qh6+ {[%clk 0:00:12]}  Kg8 {[%clk 0:00:01]} 48. Qxg5+ {[%clk 0:00:12]}  Qg7 {[%clk 0:00:01]} 49. Qh5 {[%clk 0:00:10]}  Bf6 {[%clk 0:00:02]} 50. Nh6+ {[%clk 0:00:11]}  Kh8 {[%clk 0:00:01]} 51. Nf5+ {[%clk 0:00:10]}  Qh7 {[%clk 0:00:02]} 52. Qg4 {[%clk 0:00:10]}  Rg8 {[%clk 0:00:01]} 53. Qxf4 {[%clk 0:00:10]}  Qh5 {[%clk 0:00:01]} 54. g4 {[%clk 0:00:10]}  Qg6 {[%clk 0:00:02]} 55. h5 {[%clk 0:00:10]}  Qg5 {[%clk 0:00:02]} 56. Qxg5 {[%clk 0:00:10]}  Bxg5 {[%clk 0:00:03]} 57. Nd6 {[%clk 0:00:11]}  Bf4+ {[%clk 0:00:04]} 58. Kg2 {[%clk 0:00:11]}  Bxd6 {[%clk 0:00:04]} 59. Kf2 {[%clk 0:00:11]}  Rf8 {[%clk 0:00:05]} 60. Ke3 {[%clk 0:00:12]}  Be5 {[%clk 0:00:06]} 61. g5 {[%clk 0:00:11]}  Bd4+ {[%clk 0:00:07]} 62. Ke4 {[%clk 0:00:11]}  b2 {[%clk 0:00:08]} 63. f4 {[%clk 0:00:12]}  Re8+ {[%clk 0:00:09]} 64. Kf5 {[%clk 0:00:12]}  Re1 {[%clk 0:00:10]} 65. d6 {[%clk 0:00:12]}  Re8 {[%clk 0:00:07]} 66. d7 {[%clk 0:00:13]}  Rd8 {[%clk 0:00:07]} 67. Ke6 {[%clk 0:00:14]}  Be3 {[%clk 0:00:06]} 68. Ke7 {[%clk 0:00:12]}  Rxd7+ {[%clk 0:00:06]} 69. Kxd7 {[%clk 0:00:13]}  Bxf4 {[%clk 0:00:07]} 70. g6 {[%clk 0:00:13]}  Kg7 {[%clk 0:00:08]} 71. Ke6 {[%clk 0:00:14]}  Be3 {[%clk 0:00:07]} 72. Kf5 {[%clk 0:00:14]}  Bd4 {[%clk 0:00:08]} 73. Kg5 {[%clk 0:00:14]}  Be3+ {[%clk 0:00:08]} 74. Kg4 {[%clk 0:00:15]}  Bd4 {[%clk 0:00:09]} 75. Bc2 {[%clk 0:00:15]}  Be3 {[%clk 0:00:10]} 76. Kf5 {[%clk 0:00:16]}  Bd4 {[%clk 0:00:10]} 77. Ke6 {[%clk 0:00:16]}  Be3 {[%clk 0:00:10]} 78. Kf5 {[%clk 0:00:17]}  Bd4 {[%clk 0:00:11]} 79. Ke4 {[%clk 0:00:18]}  Bf6 {[%clk 0:00:11]} 80. Kf5 {[%clk 0:00:17]}  Bd4 {[%clk 0:00:11]} 1/2-1/2


[Site "https://www.chess.com"]

[Event "Titled Tuesday Blitz August 17 2021"]
[White "Gerzhoy, Leonid"]
[Black "Kovalev, Vladislav"]
[WhiteFideId "2806126"]
[BlackFideId "13504398"]
[WhiteElo "2542"]
[BlackElo "2573"]
[Result "0-1"]
[Round "09"]
[TimeControl "180+1"]
[Date "2021.08.17"]
[WhiteClock "0:00:09"]
[BlackClock "0:00:16"]

1. d4 {[%clk 0:02:59]}  Nf6 {[%clk 0:03:00]} 2. Nf3 {[%clk 0:02:58]}  g6 {[%clk 0:03:00]} 3. Bg5 {[%clk 0:02:58]}  Bg7 {[%clk 0:03:00]} 4. Nbd2 {[%clk 0:02:58]}  O-O {[%clk 0:03:00]} 5. e4 {[%clk 0:02:57]}  d6 {[%clk 0:03:01]} 6. c3 {[%clk 0:02:57]}  c5 {[%clk 0:03:01]} 7. d5 {[%clk 0:02:56]}  e6 {[%clk 0:02:50]} 8. dxe6 {[%clk 0:02:55]}  Bxe6 {[%clk 0:02:51]} 9. Bc4 {[%clk 0:02:55]}  d5 {[%clk 0:02:40]} 10. exd5 {[%clk 0:02:54]}  Bxd5 {[%clk 0:02:41]} 11. O-O {[%clk 0:02:52]}  Nc6 {[%clk 0:02:41]} 12. Bxd5 {[%clk 0:02:47]}  Qxd5 {[%clk 0:02:41]} 13. Qb3 {[%clk 0:02:43]}  Qxb3 {[%clk 0:02:39]} 14. axb3 {[%clk 0:02:41]}  Rfe8 {[%clk 0:02:32]} 15. Bxf6 {[%clk 0:02:37]}  Bxf6 {[%clk 0:02:31]} 16. Nc4 {[%clk 0:02:37]}  Rad8 {[%clk 0:02:29]} 17. Rad1 {[%clk 0:02:34]}  b5 {[%clk 0:01:53]} 18. Ne3 {[%clk 0:02:28]}  Na5 {[%clk 0:01:34]} 19. Ra1 {[%clk 0:02:05]}  Nxb3 {[%clk 0:01:32]} 20. Rxa7 {[%clk 0:02:04]}  Nd2 {[%clk 0:01:29]} 21. Nxd2 {[%clk 0:02:00]}  Rxd2 {[%clk 0:01:29]} 22. Rc7 {[%clk 0:01:39]}  c4 {[%clk 0:01:21]} 23. Rb7 {[%clk 0:01:38]}  Rxb2 {[%clk 0:00:21]} 24. Nxc4 {[%clk 0:01:38]}  Rb3 {[%clk 0:00:18]} 25. Nd6 {[%clk 0:01:36]}  Re6 {[%clk 0:00:14]} 26. Nxb5 {[%clk 0:01:27]}  Bxc3 {[%clk 0:00:13]} 27. Nd6 {[%clk 0:01:19]}  Rxb7 {[%clk 0:00:12]} 28. Nxb7 {[%clk 0:01:19]}  Bb4 {[%clk 0:00:10]} 29. Rd1 {[%clk 0:01:02]}  Re7 {[%clk 0:00:05]} 30. Nd8 {[%clk 0:00:58]}  Rc7 {[%clk 0:00:05]} 31. g3 {[%clk 0:00:46]}  Be7 {[%clk 0:00:06]} 32. Kg2 {[%clk 0:00:30]}  Kf8 {[%clk 0:00:06]} 33. Rd3 {[%clk 0:00:28]}  Ke8 {[%clk 0:00:07]} 34. Nxf7 {[%clk 0:00:27]}  Kxf7 {[%clk 0:00:07]} 35. h4 {[%clk 0:00:27]}  Bf6 {[%clk 0:00:08]} 36. Rf3 {[%clk 0:00:24]}  Re7 {[%clk 0:00:09]} 37. Rd3 {[%clk 0:00:23]}  Kg7 {[%clk 0:00:10]} 38. Rf3 {[%clk 0:00:23]}  Bd4 {[%clk 0:00:10]} 39. Rd3 {[%clk 0:00:22]}  Ba7 {[%clk 0:00:11]} 40. Rc3 {[%clk 0:00:21]}  Rf7 {[%clk 0:00:12]} 41. f4 {[%clk 0:00:19]}  Re7 {[%clk 0:00:12]} 42. Kf3 {[%clk 0:00:18]}  Bd4 {[%clk 0:00:13]} 43. Rd3 {[%clk 0:00:18]}  Ba7 {[%clk 0:00:13]} 44. g4 {[%clk 0:00:17]}  Kf6 {[%clk 0:00:14]} 45. g5+ {[%clk 0:00:17]}  Kf7 {[%clk 0:00:14]} 46. Rd6 {[%clk 0:00:16]}  Bb8 {[%clk 0:00:14]} 47. Rf6+ {[%clk 0:00:14]}  Kg7 {[%clk 0:00:15]} 48. f5 {[%clk 0:00:14]}  Be5 {[%clk 0:00:11]} 49. Re6 {[%clk 0:00:14]}  Rxe6 {[%clk 0:00:12]} 50. fxe6 {[%clk 0:00:14]}  Kf8 {[%clk 0:00:13]} 51. Ke4 {[%clk 0:00:13]}  Bg3 {[%clk 0:00:13]} 52. h5 {[%clk 0:00:12]}  Ke7 {[%clk 0:00:13]} 53. hxg6 {[%clk 0:00:12]}  hxg6 {[%clk 0:00:13]} 54. Kd5 {[%clk 0:00:11]}  Bh2 {[%clk 0:00:13]} 55. Ke4 {[%clk 0:00:11]}  Kxe6 {[%clk 0:00:14]} 56. Kf3 {[%clk 0:00:10]}  Kf5 {[%clk 0:00:15]} 57. Kg2 {[%clk 0:00:09]}  Bf4 {[%clk 0:00:16]} 58. Kf3 {[%clk 0:00:09]}  Bxg5 {[%clk 0:00:16]} 0-1


[Site "https://www.chess.com"]

[Event "Titled Tuesday Blitz August 17 2021"]
[White "Grafil, Franz Robert"]
[Black "Golizadeh, Asghar"]
[WhiteFideId "5205298"]
[BlackFideId "12505269"]
[WhiteElo "2211"]
[BlackElo "2403"]
[Result "1/2-1/2"]
[Round "09"]
[TimeControl "180+1"]
[Date "2021.08.18"]
[WhiteClock "0:00:05"]
[BlackClock "0:00:06"]

1. d4 {[%clk 0:03:00]}  Nf6 {[%clk 0:02:59]} 2. c4 {[%clk 0:02:57]}  e6 {[%clk 0:03:00]} 3. g3 {[%clk 0:02:57]}  Bb4+ {[%clk 0:02:59]} 4. Bd2 {[%clk 0:02:57]}  Qe7 {[%clk 0:02:59]} 5. Nc3 {[%clk 0:02:56]}  Nc6 {[%clk 0:02:58]} 6. Nf3 {[%clk 0:02:54]}  O-O {[%clk 0:02:55]} 7. Bg2 {[%clk 0:02:53]}  Bxc3 {[%clk 0:02:55]} 8. Bxc3 {[%clk 0:02:53]}  Ne4 {[%clk 0:02:56]} 9. Qc2 {[%clk 0:02:48]}  Nxc3 {[%clk 0:02:36]} 10. Qxc3 {[%clk 0:02:46]}  d6 {[%clk 0:02:37]} 11. O-O {[%clk 0:02:39]}  e5 {[%clk 0:02:37]} 12. e4 {[%clk 0:02:36]}  Bg4 {[%clk 0:02:33]} 13. d5 {[%clk 0:02:11]}  Bxf3 {[%clk 0:02:29]} 14. Bxf3 {[%clk 0:02:09]}  Nd4 {[%clk 0:02:29]} 15. Rad1 {[%clk 0:02:06]}  f5 {[%clk 0:02:28]} 16. Rfe1 {[%clk 0:02:02]}  f4 {[%clk 0:02:18]} 17. Bg2 {[%clk 0:01:44]}  Rf6 {[%clk 0:02:07]} 18. Rxd4 {[%clk 0:01:39]}  exd4 {[%clk 0:02:08]} 19. Qxd4 {[%clk 0:01:40]}  fxg3 {[%clk 0:02:03]} 20. hxg3 {[%clk 0:01:38]}  Raf8 {[%clk 0:01:56]} 21. f4 {[%clk 0:01:34]}  Rg6 {[%clk 0:01:43]} 22. Re3 {[%clk 0:01:30]}  h5 {[%clk 0:01:42]} 23. e5 {[%clk 0:01:01]}  h4 {[%clk 0:01:37]} 24. exd6 {[%clk 0:00:50]}  Qxd6 {[%clk 0:01:38]} 25. c5 {[%clk 0:00:50]}  Qa6 {[%clk 0:01:34]} 26. gxh4 {[%clk 0:00:45]}  Qxa2 {[%clk 0:01:28]} 27. d6 {[%clk 0:00:39]}  Qb1+ {[%clk 0:01:28]} 28. Kh2 {[%clk 0:00:37]}  Qc2 {[%clk 0:01:28]} 29. Rg3 {[%clk 0:00:34]}  Rxg3 {[%clk 0:01:11]} 30. Kxg3 {[%clk 0:00:35]}  Rf6 {[%clk 0:01:11]} 31. Be4 {[%clk 0:00:19]}  Qb3+ {[%clk 0:01:09]} 32. Kg4 {[%clk 0:00:16]}  Qe6+ {[%clk 0:01:08]} 33. f5 {[%clk 0:00:14]}  Qd7 {[%clk 0:01:03]} 34. Bd5+ {[%clk 0:00:13]}  Kh7 {[%clk 0:01:00]} 35. Be6 {[%clk 0:00:07]}  Qc6 {[%clk 0:00:20]} 36. d7 {[%clk 0:00:05]}  Qg2+ {[%clk 0:00:20]} 37. Kf4 {[%clk 0:00:06]}  Qh2+ {[%clk 0:00:13]} 38. Kf3 {[%clk 0:00:05]}  Qh1+ {[%clk 0:00:10]} 39. Ke2 {[%clk 0:00:05]}  Qg2+ {[%clk 0:00:08]} 40. Kd1 {[%clk 0:00:06]}  Qf1+ {[%clk 0:00:07]} 41. Kc2 {[%clk 0:00:05]}  Qe2+ {[%clk 0:00:08]} 42. Kb1 {[%clk 0:00:05]}  Qf1+ {[%clk 0:00:07]} 43. Ka2 {[%clk 0:00:05]}  Qa6+ {[%clk 0:00:08]} 44. Kb1 {[%clk 0:00:05]}  Qf1+ {[%clk 0:00:07]} 45. Kc2 {[%clk 0:00:05]}  Qe2+ {[%clk 0:00:07]} 46. Kb3 {[%clk 0:00:06]}  Qb5+ {[%clk 0:00:07]} 47. Ka2 {[%clk 0:00:06]}  Qa6+ {[%clk 0:00:08]} 48. Kb1 {[%clk 0:00:05]}  Qf1+ {[%clk 0:00:06]} 1/2-1/2


[Site "https://www.chess.com"]